[Event "Live Chess"]
[Site "Chess.com"]
[Date "2023.05.21"]
[Round "-"]
[White "grillage"]
[Black "Ferrarifan27"]
[Result "0-1"]
[WhiteElo "1788"]
[BlackElo "2076"]
[TimeControl "300"]
[EndTime "6:10:04 PDT"]
[Termination "Ferrarifan27 won on time"]

1. d4 {[%clk 0:04:59.2]} 1... Nf6 {[%clk 0:04:58.5]} 2. Nc3 {[%clk 0:04:55.5]}
2... d5 {[%clk 0:04:56.9]} 3. Bf4 {[%clk 0:04:53.4]} 3... Bf5 {[%clk 0:04:54.7]}
4. e3 {[%clk 0:04:48.5]} 4... e6 {[%clk 0:04:53.7]} 5. Bd3 {[%clk 0:04:45.1]}
5... Bxd3 {[%clk 0:04:51.4]} 6. cxd3 {[%clk 0:04:44.3]} 6... Nc6 {[%clk
0:04:47.2]} 7. Nf3 {[%clk 0:04:38.7]} 7... Be7 {[%clk 0:04:46.1]} 8. Nb5 {[%clk
0:04:34.4]} 8... Rc8 {[%clk 0:04:41.6]} 9. Ne5 {[%clk 0:04:18.3]} 9... Nxe5
{[%clk 0:04:35.4]} 10. dxe5 {[%clk 0:04:15.5]} 10... Nd7 {[%clk 0:04:31.9]} 11.
Nxa7 {[%clk 0:04:13]} 11... Ra8 {[%clk 0:04:28.9]} 12. Nb5 {[%clk 0:04:11.1]}
12... Bb4+ {[%clk 0:04:16.6]} 13. Nc3 {[%clk 0:04:07.4]} 13... O-O {[%clk
0:04:09.9]} 14. O-O {[%clk 0:04:06.1]} 14... c6 {[%clk 0:03:57]} 15. Qg4 {[%clk
0:04:02.2]} 15... Kh8 {[%clk 0:03:50.8]} 16. h4 {[%clk 0:03:47]} 16... Qc7
{[%clk 0:03:38.9]} 17. d4 {[%clk 0:03:43.2]} 17... Bxc3 {[%clk 0:03:24]} 18.
bxc3 {[%clk 0:03:41.6]} 18... Nb6 {[%clk 0:03:17.5]} 19. h5 {[%clk 0:03:39.9]}
19... h6 {[%clk 0:03:10.9]} 20. Qe2 {[%clk 0:03:15.8]} 20... Nc4 {[%clk
0:03:05.9]} 21. g4 {[%clk 0:03:12.1]} 21... Qe7 {[%clk 0:03:04.5]} 22. Bg3
{[%clk 0:02:41]} 22... Ra3 {[%clk 0:03:00.4]} 23. Kg2 {[%clk 0:02:26.5]} 23...
Rxc3 {[%clk 0:02:58.2]} 24. Rh1 {[%clk 0:02:24]} 24... Ra8 {[%clk 0:02:51.9]}
25. Bh4 {[%clk 0:02:21.6]} 25... Qa3 {[%clk 0:02:38.3]} 26. g5 {[%clk
0:02:16.4]} 26... Nxe3+ {[%clk 0:02:20.9]} 27. fxe3 {[%clk 0:02:06.2]} 27...
Rxe3 {[%clk 0:02:20.8]} 28. Qf2 {[%clk 0:02:01]} 28... Re4 {[%clk 0:02:13.5]}
29. gxh6 {[%clk 0:01:52]} 29... Rg4+ {[%clk 0:02:08.1]} 30. Bg3 {[%clk
0:01:43.6]} 30... Qd3 {[%clk 0:01:54.8]} 31. hxg7+ {[%clk 0:01:40.6]} 31... Rxg7
{[%clk 0:01:49.7]} 32. h6 {[%clk 0:01:32.7]} 32... Rg6 {[%clk 0:01:48]} 33. Raf1
{[%clk 0:01:18.2]} 33... Qe4+ {[%clk 0:01:44.5]} 34. Qf3 {[%clk 0:01:09.9]}
34... Rxa2+ {[%clk 0:01:42.5]} 35. Rf2 {[%clk 0:01:08.6]} 35... Rxf2+ {[%clk
0:01:03.8]} 36. Kxf2 {[%clk 0:01:07.2]} 36... Qxd4+ {[%clk 0:01:02.6]} 37. Kg2
{[%clk 0:00:59.7]} 37... Qxe5 {[%clk 0:00:58.9]} 38. Rh3 {[%clk 0:00:40.3]}
38... Qb2+ {[%clk 0:00:54.6]} 39. Kg1 {[%clk 0:00:32]} 39... Qc1+ {[%clk
0:00:48.5]} 40. Kh2 {[%clk 0:00:30]} 40... f5 {[%clk 0:00:36.8]} 41. Be5+ {[%clk
0:00:28.5]} 41... Kh7 {[%clk 0:00:34.6]} 42. Bg3 {[%clk 0:00:20.4]} 42... Rxh6
{[%clk 0:00:30.2]} 43. Rxh6+ {[%clk 0:00:18.3]} 43... Qxh6+ {[%clk 0:00:30.1]}
44. Kg2 {[%clk 0:00:16.3]} 44... Qd2+ {[%clk 0:00:28.4]} 45. Bf2 {[%clk
0:00:14.6]} 45... Kg6 {[%clk 0:00:26]} 46. Qg3+ {[%clk 0:00:13.2]} 46... Qg5
{[%clk 0:00:25]} 47. Qxg5+ {[%clk 0:00:10.5]} 47... Kxg5 {[%clk 0:00:24.9]} 48.
Kf3 {[%clk 0:00:09.4]} 48... e5 {[%clk 0:00:23.7]} 49. Be3+ {[%clk 0:00:07.5]}
49... f4 {[%clk 0:00:22.4]} 50. Bc5 {[%clk 0:00:06.5]} 50... e4+ {[%clk
0:00:19.6]} 51. Kf2 {[%clk 0:00:03.2]} 51... Kf5 {[%clk 0:00:18.8]} 0-1

[Event "Live Chess"]
[Site "Chess.com"]
[Date "2023.05.21"]
[Round "-"]
[White "Bot_Boy"]
[Black "1600x"]
[Result "0-1"]
[WhiteElo "332"]
[BlackElo "1875"]
[TimeControl "300"]
[EndTime "6:10:17 PDT"]
[Termination "1600x won on time"]

1. e4 {[%clk 0:04:58.1]} 1... e5 {[%clk 0:04:59.2]} 2. Nf3 {[%clk 0:04:57.3]}
2... Nc6 {[%clk 0:04:44.2]} 3. Bc4 {[%clk 0:04:54.1]} 3... Nf6 {[%clk
0:04:42.6]} 4. d3 {[%clk 0:04:43.4]} 4... Be7 {[%clk 0:04:38.7]} 5. Bd2 {[%clk
0:04:32.5]} 5... O-O {[%clk 0:04:35.8]} 6. c3 {[%clk 0:04:29.3]} 6... d5 {[%clk
0:04:30.6]} 7. exd5 {[%clk 0:04:12.9]} 7... Nxd5 {[%clk 0:04:28.8]} 8. b4 {[%clk
0:03:48.1]} 8... Nb6 {[%clk 0:04:26.7]} 9. Qc1 {[%clk 0:03:29.8]} 9... e4 {[%clk
0:04:21.7]} 10. dxe4 {[%clk 0:03:16.8]} 10... Nxc4 {[%clk 0:04:15.1]} 11. O-O
{[%clk 0:02:57.7]} 11... Bg4 {[%clk 0:04:09.1]} 12. Rd1 {[%clk 0:02:33.3]} 12...
Qc8 {[%clk 0:03:57.1]} 13. Kh1 {[%clk 0:01:45.8]} 13... Bxf3 {[%clk 0:03:49.6]}
14. gxf3 {[%clk 0:01:42.8]} 14... Qh3 {[%clk 0:03:47.2]} 15. Rg1 {[%clk
0:01:11.4]} 15... Qxf3+ {[%clk 0:03:43.8]} 16. Rg2 {[%clk 0:01:07.1]} 16... Rad8
{[%clk 0:03:41]} 17. Qg1 {[%clk 0:01:02.8]} 17... N6e5 {[%clk 0:03:36.2]} 18.
Be3 {[%clk 0:00:41.9]} 18... Rd1 {[%clk 0:03:33.5]} 19. Qxd1 {[%clk 0:00:29]}
19... Qxd1+ {[%clk 0:03:30.6]} 20. Rg1 {[%clk 0:00:23.2]} 20... Qf3+ {[%clk
0:03:28]} 21. Rg2 {[%clk 0:00:19.3]} 21... Nxe3 {[%clk 0:03:25.3]} 22. fxe3
{[%clk 0:00:16.4]} 22... Rd8 {[%clk 0:03:22.7]} 23. Nd2 {[%clk 0:00:11.2]} 23...
Rxd2 {[%clk 0:03:21.2]} 24. h3 {[%clk 0:00:03.9]} 24... Rxg2 {[%clk 0:03:17]}
0-1

[Event "Live Chess"]
[Site "Chess.com"]
[Date "2023.05.21"]
[Round "-"]
[White "Brooms1989"]
[Black "LiamBellwood"]
[Result "0-1"]
[WhiteElo "1152"]
[BlackElo "1914"]
[TimeControl "300"]
[EndTime "6:10:17 PDT"]
[Termination "LiamBellwood won by resignation"]

1. e4 {[%clk 0:04:58.6]} 1... e6 {[%clk 0:04:59.9]} 2. d4 {[%clk 0:04:57.2]}
2... d5 {[%clk 0:04:59.8]} 3. Nc3 {[%clk 0:04:56.2]} 3... Nf6 {[%clk 0:04:58.8]}
4. e5 {[%clk 0:04:55.1]} 4... Ng8 {[%clk 0:04:58.2]} 5. Nf3 {[%clk 0:04:53.8]}
5... c5 {[%clk 0:04:57.8]} 6. Bb5+ {[%clk 0:04:51.4]} 6... Bd7 {[%clk
0:04:56.6]} 7. Bxd7+ {[%clk 0:04:50.4]} 7... Qxd7 {[%clk 0:04:56.5]} 8. O-O
{[%clk 0:04:45.3]} 8... Nc6 {[%clk 0:04:56.4]} 9. Be3 {[%clk 0:04:39.7]} 9...
Nge7 {[%clk 0:04:55.3]} 10. dxc5 {[%clk 0:04:35.3]} 10... Nf5 {[%clk 0:04:54.2]}
11. Ne2 {[%clk 0:04:13.4]} 11... Nxe3 {[%clk 0:04:51.7]} 12. fxe3 {[%clk
0:04:13.3]} 12... Bxc5 {[%clk 0:04:51.2]} 13. Qc1 {[%clk 0:04:06.1]} 13... O-O
{[%clk 0:04:47]} 14. Ng3 {[%clk 0:04:02.9]} 14... f6 {[%clk 0:04:46]} 15. a3
{[%clk 0:03:54.9]} 15... fxe5 {[%clk 0:04:44.7]} 16. b4 {[%clk 0:03:53.9]} 16...
Bb6 {[%clk 0:04:44.2]} 17. Qb2 {[%clk 0:03:48.1]} 17... Bxe3+ {[%clk 0:04:41.2]}
18. Kh1 {[%clk 0:03:46.2]} 18... e4 {[%clk 0:04:40.5]} 19. Ne5 {[%clk
0:03:40.6]} 19... Nxe5 {[%clk 0:04:35.8]} 20. Qxe5 {[%clk 0:03:35.8]} 20...
Rxf1+ {[%clk 0:04:31.7]} 21. Rxf1 {[%clk 0:03:35.7]} 21... Rf8 {[%clk
0:04:30.9]} 22. Rxf8+ {[%clk 0:03:29.1]} 22... Kxf8 {[%clk 0:04:30.8]} 23. Nh5
{[%clk 0:03:20.3]} 23... Qf7 {[%clk 0:04:18.8]} 24. Qb8+ {[%clk 0:03:15.9]}
24... Qe8 {[%clk 0:04:11.8]} 25. Qd6+ {[%clk 0:03:14.2]} 25... Kf7 {[%clk
0:04:04.2]} 26. Qc7+ {[%clk 0:03:10.7]} 26... Qe7 {[%clk 0:04:01.8]} 27. Qe5
{[%clk 0:03:09.1]} 27... Bh6 {[%clk 0:03:55.4]} 28. g4 {[%clk 0:02:56.2]} 28...
Qg5 {[%clk 0:03:54.2]} 29. Qc7+ {[%clk 0:02:53.4]} 29... Kg6 {[%clk 0:03:50.5]}
30. Qd7 {[%clk 0:02:36]} 30... Qxg4 {[%clk 0:03:47.9]} 31. Qe8+ {[%clk
0:02:33.8]} 31... Kf5 {[%clk 0:03:43.1]} 32. Qf7+ {[%clk 0:02:29.6]} 32... Ke5
{[%clk 0:03:40]} 33. Qc7+ {[%clk 0:02:22.9]} 33... Kf5 {[%clk 0:03:16.2]} 34.
Qf7+ {[%clk 0:02:14.6]} 34... Kg5 {[%clk 0:03:15.4]} 35. Qe7+ {[%clk 0:02:05.1]}
35... Kxh5 {[%clk 0:03:14.6]} 36. Qf7+ {[%clk 0:02:04]} 36... g6 {[%clk
0:03:13.1]} 0-1

[Event "Live Chess"]
[Site "Chess.com"]
[Date "2023.05.21"]
[Round "-"]
[White "AyannaTang"]
[Black "matt1979"]
[Result "0-1"]
[WhiteElo "230"]
[BlackElo "1532"]
[TimeControl "300"]
[EndTime "6:10:18 PDT"]
[Termination "matt1979 won by checkmate"]

1. e4 {[%clk 0:04:59.1]} 1... c5 {[%clk 0:04:57.8]} 2. Bc4 {[%clk 0:04:51.7]}
2... e6 {[%clk 0:04:55.6]} 3. d4 {[%clk 0:04:45.3]} 3... cxd4 {[%clk 0:04:51.2]}
4. Bf4 {[%clk 0:04:42.6]} 4... Nc6 {[%clk 0:04:48.2]} 5. Nf3 {[%clk 0:04:39.6]}
5... Bc5 {[%clk 0:04:43.3]} 6. Nc3 {[%clk 0:04:37]} 6... dxc3 {[%clk 0:04:40.1]}
7. bxc3 {[%clk 0:04:27.3]} 7... Nge7 {[%clk 0:04:35.1]} 8. Qd2 {[%clk
0:04:21.3]} 8... O-O {[%clk 0:04:32.2]} 9. Bg5 {[%clk 0:04:18.4]} 9... h6 {[%clk
0:04:23.5]} 10. Bxe7 {[%clk 0:04:16.7]} 10... Qxe7 {[%clk 0:04:19.7]} 11. O-O-O
{[%clk 0:04:05.3]} 11... a6 {[%clk 0:04:15.6]} 12. Qf4 {[%clk 0:03:51.3]} 12...
b5 {[%clk 0:04:09]} 13. Nd2 {[%clk 0:03:48.5]} 13... bxc4 {[%clk 0:04:05]} 14.
Nxc4 {[%clk 0:03:46.1]} 14... Ba3+ {[%clk 0:04:01.1]} 15. Nxa3 {[%clk
0:03:43.4]} 15... Qxa3+ {[%clk 0:03:57.8]} 16. Kb1 {[%clk 0:03:37.5]} 16... Rb8+
{[%clk 0:03:55.8]} 17. Ka1 {[%clk 0:03:35.5]} 17... Qb2# {[%clk 0:03:53.6]} 0-1

[Event "Live Chess"]
[Site "Chess.com"]
[Date "2023.05.21"]
[Round "-"]
[White "whatnot126"]
[Black "AMCWAML"]
[Result "1-0"]
[WhiteElo "2065"]
[BlackElo "2291"]
[TimeControl "300"]
[EndTime "6:10:34 PDT"]
[Termination "whatnot126 won by checkmate"]

1. e4 {[%clk 0:04:59.1]} 1... c5 {[%clk 0:04:59.2]} 2. c3 {[%clk 0:04:58.3]}
2... Nf6 {[%clk 0:04:58]} 3. e5 {[%clk 0:04:57.4]} 3... Nd5 {[%clk 0:04:57.6]}
4. d4 {[%clk 0:04:57]} 4... cxd4 {[%clk 0:04:57.5]} 5. cxd4 {[%clk 0:04:56.9]}
5... d6 {[%clk 0:04:56.1]} 6. exd6 {[%clk 0:04:54.7]} 6... Qxd6 {[%clk
0:04:54.8]} 7. Nf3 {[%clk 0:04:54.3]} 7... Nc6 {[%clk 0:04:54.1]} 8. Nc3 {[%clk
0:04:53.5]} 8... Bg4 {[%clk 0:04:49.7]} 9. Bc4 {[%clk 0:04:46.6]} 9... e6 {[%clk
0:04:47.1]} 10. O-O {[%clk 0:04:45]} 10... Be7 {[%clk 0:04:45.4]} 11. h3 {[%clk
0:04:36.9]} 11... Nxc3 {[%clk 0:04:41.8]} 12. bxc3 {[%clk 0:04:35.3]} 12... Bh5
{[%clk 0:04:41.1]} 13. a4 {[%clk 0:04:29.8]} 13... O-O {[%clk 0:04:38.4]} 14. a5
{[%clk 0:04:23.1]} 14... Rac8 {[%clk 0:04:28.4]} 15. Qb3 {[%clk 0:04:19.8]}
15... Bxf3 {[%clk 0:04:23.1]} 16. gxf3 {[%clk 0:04:17.9]} 16... Qc7 {[%clk
0:04:10.6]} 17. Bd3 {[%clk 0:04:09.3]} 17... Nxa5 {[%clk 0:04:05]} 18. Qb5
{[%clk 0:04:03]} 18... Nc6 {[%clk 0:03:58.1]} 19. Qh5 {[%clk 0:03:55.1]} 19...
g6 {[%clk 0:03:56.3]} 20. Qg4 {[%clk 0:03:51.6]} 20... Rfd8 {[%clk 0:03:35.5]}
21. Bh6 {[%clk 0:03:48.7]} 21... Bf8 {[%clk 0:03:21.5]} 22. Bf4 {[%clk
0:03:47.9]} 22... e5 {[%clk 0:03:12.2]} 23. Bg5 {[%clk 0:03:47.2]} 23... Re8
{[%clk 0:03:08]} 24. d5 {[%clk 0:03:40.5]} 24... Ne7 {[%clk 0:03:01.2]} 25. c4
{[%clk 0:03:37.8]} 25... b5 {[%clk 0:02:53]} 26. cxb5 {[%clk 0:02:52.9]} 26...
Nxd5 {[%clk 0:02:49.1]} 27. h4 {[%clk 0:02:44.7]} 27... Nf4 {[%clk 0:02:08.7]}
28. Bxf4 {[%clk 0:02:30.4]} 28... exf4 {[%clk 0:02:07.6]} 29. Rfc1 {[%clk
0:02:28.8]} 29... Qxc1+ {[%clk 0:02:04.4]} 30. Rxc1 {[%clk 0:02:26.1]} 30...
Rxc1+ {[%clk 0:02:04.3]} 31. Kg2 {[%clk 0:02:15.8]} 31... Bd6 {[%clk 0:01:36.8]}
32. Qd7 {[%clk 0:02:13.5]} 32... Re6 {[%clk 0:01:28.2]} 33. Be4 {[%clk
0:02:03.9]} 33... Rc7 {[%clk 0:01:15.6]} 34. Qd8+ {[%clk 0:02:02.1]} 34... Kg7
{[%clk 0:01:15]} 35. h5 {[%clk 0:02:01.3]} 35... Rf6 {[%clk 0:01:10.9]} 36. h6+
{[%clk 0:01:57.5]} 36... Kxh6 {[%clk 0:01:09.8]} 37. Qxf6 {[%clk 0:01:57]} 37...
Rd7 {[%clk 0:00:34.2]} 38. Bc6 {[%clk 0:01:52.2]} 38... Be7 {[%clk 0:00:33.4]}
39. Qe5 {[%clk 0:01:40.2]} 39... Rd1 {[%clk 0:00:25.6]} 40. Qxe7 {[%clk
0:01:38.3]} 40... a6 {[%clk 0:00:24]} 41. bxa6 {[%clk 0:01:36.5]} 41... g5
{[%clk 0:00:20.8]} 42. Qf6+ {[%clk 0:01:32.6]} 42... Kh5 {[%clk 0:00:19.6]} 43.
Qxf7+ {[%clk 0:01:31.7]} 43... Kh4 {[%clk 0:00:18.7]} 44. Qxh7# {[%clk
0:01:30.6]} 1-0

[Event "Live Chess"]
[Site "Chess.com"]
[Date "2023.05.21"]
[Round "-"]
[White "Ian-Morley"]
[Black "JoRoSaR"]
[Result "0-1"]
[WhiteElo "1067"]
[BlackElo "1687"]
[TimeControl "300"]
[EndTime "6:10:37 PDT"]
[Termination "JoRoSaR won by resignation"]

1. e4 {[%clk 0:04:55.8]} 1... c5 {[%clk 0:04:55.9]} 2. Nf3 {[%clk 0:04:54.4]}
2... Nc6 {[%clk 0:04:55.4]} 3. Bb5 {[%clk 0:04:53.8]} 3... a6 {[%clk 0:04:46.6]}
4. Bxc6 {[%clk 0:04:52.1]} 4... bxc6 {[%clk 0:04:46.5]} 5. O-O {[%clk
0:04:51.3]} 5... d6 {[%clk 0:04:38.7]} 6. Re1 {[%clk 0:04:50]} 6... Bg4 {[%clk
0:04:37.4]} 7. Nc3 {[%clk 0:04:48.3]} 7... e5 {[%clk 0:04:36.8]} 8. h3 {[%clk
0:04:47]} 8... Bh5 {[%clk 0:04:35.8]} 9. g4 {[%clk 0:04:45.1]} 9... Bg6 {[%clk
0:04:34.4]} 10. Nh4 {[%clk 0:04:43.9]} 10... Qxh4 {[%clk 0:04:31.6]} 11. d3
{[%clk 0:04:39.5]} 11... Qxh3 {[%clk 0:04:28.6]} 12. f3 {[%clk 0:04:37.8]} 12...
Be7 {[%clk 0:04:26.9]} 13. g5 {[%clk 0:04:34.9]} 13... Qh4 {[%clk 0:04:23.7]}
14. Ne2 {[%clk 0:04:33]} 14... Bxg5 {[%clk 0:04:22.7]} 15. Bxg5 {[%clk
0:04:31.4]} 15... Qxg5+ {[%clk 0:04:22.6]} 16. Kf2 {[%clk 0:04:30.4]} 16... h5
{[%clk 0:04:22]} 17. Ng3 {[%clk 0:04:28.9]} 17... h4 {[%clk 0:04:21.1]} 18. Nf5
{[%clk 0:04:28]} 18... Bxf5 {[%clk 0:04:20.4]} 19. exf5 {[%clk 0:04:27.1]} 19...
Qxf5 {[%clk 0:04:20.3]} 20. Rh1 {[%clk 0:04:26.2]} 20... h3 {[%clk 0:04:19.5]}
21. Qg1 {[%clk 0:04:24.7]} 21... g6 {[%clk 0:04:15.4]} 22. Rh2 {[%clk
0:04:17.7]} 22... Nf6 {[%clk 0:04:05.4]} 23. a4 {[%clk 0:04:13.2]} 23... e4
{[%clk 0:04:03.5]} 24. dxe4 {[%clk 0:04:11.8]} 24... Nxe4+ {[%clk 0:04:02.9]}
25. Ke3 {[%clk 0:04:09]} 25... Nf6 {[%clk 0:03:57.4]} 26. Re1 {[%clk 0:04:06.6]}
26... O-O-O {[%clk 0:03:46.5]} 27. Rhe2 {[%clk 0:04:02.4]} 27... Rde8+ {[%clk
0:03:45.3]} 28. Kd2 {[%clk 0:04:01.5]} 28... Qd5+ {[%clk 0:03:43.6]} 29. Kc1
{[%clk 0:04:00.3]} 29... Qxf3 {[%clk 0:03:42]} 30. Rxe8+ {[%clk 0:03:59.1]}
30... Rxe8 {[%clk 0:03:41.7]} 31. Rxe8+ {[%clk 0:03:58.3]} 31... Nxe8 {[%clk
0:03:41.6]} 32. b4 {[%clk 0:03:50.6]} 32... Qf4+ {[%clk 0:03:40.8]} 33. Kb2
{[%clk 0:03:49.3]} 33... h2 {[%clk 0:03:40.7]} 34. Qg2 {[%clk 0:03:39.1]} 34...
Qd4+ {[%clk 0:03:38.3]} 35. Kb3 {[%clk 0:03:36.4]} 35... Qg1 {[%clk 0:03:36.9]}
36. Qxc6+ {[%clk 0:03:35]} 36... Kd8 {[%clk 0:03:35.5]} 37. Qb6+ {[%clk
0:03:28.5]} 37... Ke7 {[%clk 0:03:34.5]} 38. Qb7+ {[%clk 0:03:27.1]} 38... Kf6
{[%clk 0:03:33.3]} 39. Qf3+ {[%clk 0:03:22.2]} 39... Kg7 {[%clk 0:03:31]} 40.
Qc3+ {[%clk 0:03:20.5]} 40... Kg8 {[%clk 0:03:29.8]} 41. bxc5 {[%clk 0:03:14.3]}
41... dxc5 {[%clk 0:03:29]} 42. Qxc5 {[%clk 0:03:13.4]} 42... Qxc5 {[%clk
0:03:27.8]} 0-1

[Event "Live Chess"]
[Site "Chess.com"]
[Date "2023.05.21"]
[Round "-"]
[White "CrypticF1"]
[Black "SavagePawn7"]
[Result "0-1"]
[WhiteElo "489"]
[BlackElo "789"]
[TimeControl "300"]
[EndTime "6:10:56 PDT"]
[Termination "SavagePawn7 won by checkmate"]

1. e4 {[%clk 0:04:59.2]} 1... d5 {[%clk 0:04:55.2]} 2. exd5 {[%clk 0:04:57.9]}
2... Nf6 {[%clk 0:04:53.5]} 3. Nc3 {[%clk 0:04:56]} 3... Nxd5 {[%clk 0:04:51.7]}
4. Nxd5 {[%clk 0:04:55.2]} 4... Qxd5 {[%clk 0:04:50.6]} 5. Nf3 {[%clk
0:04:54.9]} 5... Nc6 {[%clk 0:04:49.1]} 6. c3 {[%clk 0:04:50.2]} 6... Bg4 {[%clk
0:04:44.2]} 7. Be2 {[%clk 0:04:33.7]} 7... O-O-O {[%clk 0:04:41.2]} 8. h3 {[%clk
0:04:26.6]} 8... Bxf3 {[%clk 0:04:38.8]} 9. Bxf3 {[%clk 0:04:26.5]} 9... Qe5+
{[%clk 0:04:31.7]} 10. Qe2 {[%clk 0:04:15]} 10... Qxe2+ {[%clk 0:04:29.5]} 11.
Bxe2 {[%clk 0:04:14.9]} 11... e6 {[%clk 0:04:27.8]} 12. d4 {[%clk 0:04:13.8]}
12... Bd6 {[%clk 0:04:13.2]} 13. f4 {[%clk 0:04:05.1]} 13... f6 {[%clk
0:04:08.2]} 14. g3 {[%clk 0:03:53.5]} 14... e5 {[%clk 0:03:58.3]} 15. fxe5
{[%clk 0:03:50.5]} 15... fxe5 {[%clk 0:03:57]} 16. dxe5 {[%clk 0:03:49.8]} 16...
Bxe5 {[%clk 0:03:54.7]} 17. Bf3 {[%clk 0:03:46.6]} 17... Rhe8 {[%clk 0:03:50.4]}
18. O-O {[%clk 0:03:39.9]} 18... Bxg3 {[%clk 0:03:43.1]} 19. Bxc6 {[%clk
0:03:38]} 19... bxc6 {[%clk 0:03:40.7]} 20. Bf4 {[%clk 0:03:36.8]} 20... Bxf4
{[%clk 0:03:36.4]} 21. Rxf4 {[%clk 0:03:36.7]} 21... Re2 {[%clk 0:03:28.9]} 22.
Raf1 {[%clk 0:03:34.1]} 22... Rxb2 {[%clk 0:03:21.9]} 23. Rf8 {[%clk 0:03:33.2]}
23... Rxf8 {[%clk 0:03:20.3]} 24. Rxf8+ {[%clk 0:03:33.1]} 24... Kb7 {[%clk
0:03:17.9]} 25. Rf7 {[%clk 0:03:32.1]} 25... Rxa2 {[%clk 0:03:10.2]} 26. Rxg7
{[%clk 0:03:31.4]} 26... a5 {[%clk 0:03:02.3]} 27. Rxh7 {[%clk 0:03:30.7]} 27...
a4 {[%clk 0:02:53.6]} 28. h4 {[%clk 0:03:26.3]} 28... Rc2 {[%clk 0:02:51.4]} 29.
h5 {[%clk 0:03:25.4]} 29... a3 {[%clk 0:02:50.1]} 30. h6 {[%clk 0:03:25]} 30...
a2 {[%clk 0:02:49]} 31. Rf7 {[%clk 0:03:21.5]} 31... a1=Q+ {[%clk 0:02:46.6]}
32. Rf1 {[%clk 0:03:21]} 32... Qb2 {[%clk 0:02:42.4]} 33. h7 {[%clk 0:03:17.4]}
33... Rg2+ {[%clk 0:02:40.2]} 34. Kh1 {[%clk 0:03:15.6]} 34... Rh2+ {[%clk
0:02:38.9]} 35. Kg1 {[%clk 0:03:14.5]} 35... Qg2# {[%clk 0:02:37.4]} 0-1

[Event "Live Chess"]
[Site "Chess.com"]
[Date "2023.05.21"]
[Round "-"]
[White "wot-not"]
[Black "nigelst"]
[Result "1-0"]
[WhiteElo "1540"]
[BlackElo "1696"]
[TimeControl "300"]
[EndTime "6:10:56 PDT"]
[Termination "wot-not won by checkmate"]

1. e4 {[%clk 0:04:57.8]} 1... c6 {[%clk 0:04:59]} 2. f4 {[%clk 0:04:57.1]} 2...
d5 {[%clk 0:04:58.6]} 3. e5 {[%clk 0:04:55.8]} 3... Bf5 {[%clk 0:04:56.8]} 4.
Nf3 {[%clk 0:04:55.6]} 4... e6 {[%clk 0:04:54.4]} 5. d4 {[%clk 0:04:55.4]} 5...
Nd7 {[%clk 0:04:53.3]} 6. Bd3 {[%clk 0:04:55]} 6... Bxd3 {[%clk 0:04:51.5]} 7.
cxd3 {[%clk 0:04:54.1]} 7... Ne7 {[%clk 0:04:50.1]} 8. O-O {[%clk 0:04:53.1]}
8... Nf5 {[%clk 0:04:48.3]} 9. g4 {[%clk 0:04:49]} 9... Nh4 {[%clk 0:04:46.7]}
10. Be3 {[%clk 0:04:42.4]} 10... Nxf3+ {[%clk 0:04:44.2]} 11. Qxf3 {[%clk
0:04:41.1]} 11... Be7 {[%clk 0:04:40.9]} 12. Nd2 {[%clk 0:04:37]} 12... c5
{[%clk 0:04:40]} 13. f5 {[%clk 0:04:35.2]} 13... cxd4 {[%clk 0:04:38.2]} 14.
Bxd4 {[%clk 0:04:27]} 14... Bc5 {[%clk 0:04:37]} 15. Bxc5 {[%clk 0:04:25.3]}
15... Nxc5 {[%clk 0:04:34.9]} 16. fxe6 {[%clk 0:04:23.6]} 16... fxe6 {[%clk
0:04:32.4]} 17. Qf7# {[%clk 0:04:21.3]} 1-0

[Event "Live Chess"]
[Site "Chess.com"]
[Date "2023.05.21"]
[Round "-"]
[White "ShanthamGrarks"]
[Black "Biranidun"]
[Result "0-1"]
[WhiteElo "1964"]
[BlackElo "2529"]
[TimeControl "300"]
[EndTime "6:11:02 PDT"]
[Termination "Biranidun won by resignation"]

1. d4 {[%clk 0:04:56.5]} 1... Nf6 {[%clk 0:04:59.1]} 2. Nc3 {[%clk 0:04:54.7]}
2... d5 {[%clk 0:04:58]} 3. e4 {[%clk 0:04:53.6]} 3... dxe4 {[%clk 0:04:57.9]}
4. f3 {[%clk 0:04:52.1]} 4... exf3 {[%clk 0:04:57]} 5. Nxf3 {[%clk 0:04:51.6]}
5... Bf5 {[%clk 0:04:56.6]} 6. Bc4 {[%clk 0:04:50.3]} 6... e6 {[%clk 0:04:55.7]}
7. Bg5 {[%clk 0:04:49.8]} 7... c6 {[%clk 0:04:54.5]} 8. O-O {[%clk 0:04:49.2]}
8... Be7 {[%clk 0:04:52.3]} 9. Kh1 {[%clk 0:04:47.9]} 9... Nbd7 {[%clk
0:04:50.9]} 10. Qe1 {[%clk 0:04:42.7]} 10... O-O {[%clk 0:04:45]} 11. Nh4 {[%clk
0:04:31.3]} 11... Bg6 {[%clk 0:04:43.4]} 12. Nxg6 {[%clk 0:04:29.2]} 12... hxg6
{[%clk 0:04:43.3]} 13. Qh4 {[%clk 0:04:21.9]} 13... Re8 {[%clk 0:04:34.9]} 14.
Rf3 {[%clk 0:04:17.3]} 14... Nh5 {[%clk 0:04:23.6]} 15. Ne4 {[%clk 0:04:14.3]}
15... Ndf6 {[%clk 0:03:54.1]} 16. Bxf6 {[%clk 0:03:48.1]} 16... gxf6 {[%clk
0:03:43.1]} 17. g4 {[%clk 0:03:38.7]} 17... f5 {[%clk 0:03:40.3]} 18. Qh3 {[%clk
0:02:57.9]} 18... fxe4 {[%clk 0:03:33.6]} 19. Rf2 {[%clk 0:02:54.9]} 19... Qxd4
{[%clk 0:03:28.3]} 20. Bxe6 {[%clk 0:02:36.1]} 20... Qxf2 {[%clk 0:03:23.1]} 21.
Rf1 {[%clk 0:02:27.8]} 21... Nf4 {[%clk 0:03:16]} 22. Bxf7+ {[%clk 0:02:24.7]}
22... Kg7 {[%clk 0:03:14.2]} 23. Qc3+ {[%clk 0:02:22.9]} 23... Bf6 {[%clk
0:03:12]} 24. Qxf6+ {[%clk 0:02:19.1]} 24... Kxf6 {[%clk 0:03:11.2]} 25. Rxf2
{[%clk 0:02:17.7]} 25... Kxf7 {[%clk 0:03:10.6]} 26. Rxf4+ {[%clk 0:02:16.9]}
26... Kg7 {[%clk 0:03:10.2]} 27. Rf7+ {[%clk 0:02:14.1]} 27... Kxf7 {[%clk
0:03:09.1]} 0-1